[Event "FIDE CB Open 2022"]
[Site "Ceske Budejovice"]
[Date "2022.07.01"]
[Round "1.32"]
[White "Rosol, Philip"]
[Black "Hofstadler, Mario"]
[Result "0-1"]
[ECO "A57"]
[WhiteElo "1741"]
[BlackElo "2123"]
[Annotator "RC"]
[PlyCount "42"]
[EventDate "2022.07.01"]
[EventType "swiss"]
[EventCountry "CZE"]
[SourceTitle "playchess.com"]
[Source "ChessBase"]
[SourceQuality "1"]
[TimeControl "40/5400+30:1800+30"]

1. d4 {[%emt 0:00:05]} Nf6 {[%emt 0:00:49]} 2. c4 {[%emt 0:00:08]} c5 {[%emt 0:01:07]} 3. d5 {[%emt 0:00:08]} b5 {[%emt 0:01:31]} 4. cxb5 {[%emt 0:00:07]} a6 {[%emt 0:00:32]} 5. b6 {[%emt 0:00:08]} d6 {[%emt 0:03:33]} 6. Nc3 {[%emt 0:02:03]} Nbd7 {[%emt 0:01:37]} 7. e4 {[%emt 0:02:25]} g6 {[%emt 0:00:27]} 8. Nf3 {[%emt 0:07:14]} Bg7 {[%emt 0:01:30]} 9. Bd3 {[%emt 0:05:18]} O-O {[%emt 0:02:00]} 10. O-O {[%emt 0:02:06]} Qxb6 {[%emt 0:02:47]} 11. Nd2 {[%emt 0:04:55]} Ne5 {[%emt 0:17:06]} 12. Be2 {[%emt 0:05:38]} g5 {[%emt 0:01:45]} 13. Nc4 {[%emt 0:13:05]} Nxc4 {[%emt 0:00:22]} 14. Bxc4 {[%emt 0:00:05]} Nd7 {[%emt 0:25:01]} 15. Qe2 {[%emt 0:26:03]} h6 {[%emt 0:10:05]} 16. f4 {[%emt 0:03:55]} gxf4 {[%emt 0:05:08]} 17. Rxf4 {[%emt 0:02:37]} Ne5 {[%emt 0:00:30]} 18. Rg4 {[%emt 0:00:30]} Qb4 {[%emt 0:01:43]} 19. Rh4 {[%emt 0:00:31]} Ng6 {[%emt 0:04:13]} 20. Rh5 {[%emt 0:03:15]} Bg4 {[%emt 0:02:55]} 21. Kh1 {[%emt 0:08:08]} Ne5 {[%emt 0:15:45]} 0-1

[Event "FIDE CB Open 2022"]
[Site "Ceske Budejovice"]
[Date "2022.07.01"]
[Round "1.33"]
[White "Koch-Muller, Oscar"]
[Black "Travnicek, Jaroslav"]
[Result "1/2-1/2"]
[ECO "E24"]
[WhiteElo "2115"]
[BlackElo "1730"]
[Annotator "RC"]
[PlyCount "123"]
[EventDate "2022.07.01"]
[EventType "swiss"]
[EventCountry "CZE"]
[SourceTitle "playchess.com"]
[Source "ChessBase"]
[SourceQuality "1"]
[TimeControl "40/5400+30:1800+30"]

1. d4 {[%emt 0:00:07]} Nf6 {[%emt 0:00:24]} 2. c4 {[%emt 0:00:04]} e6 {[%emt 0:00:15]} 3. Nc3 {[%emt 0:00:04]} Bb4 {[%emt 0:00:27]} 4. f3 {[%emt 0:00:07]} O-O {[%emt 0:02:24]} 5. a3 {[%emt 0:01:46]} Bxc3+ {[%emt 0:01:11]} 6. bxc3 {[%emt 0:00:03]} b6 {[%emt 0:02:40]} 7. e4 {[%emt 0:01:13]} d6 {[%emt 0:02:25]} 8. Bd3 {[%emt 0:02:52]} Nbd7 {[%emt 0:02:04]} 9. Ne2 {[%emt 0:01:16]} e5 {[%emt 0:02:40]} 10. O-O {[%emt 0:02:14]} exd4 {[%emt 0:03:34]} 11. cxd4 {[%emt 0:00:34]} c5 {[%emt 0:01:17]} 12. Rb1 {[%emt 0:29:32]} Ba6 {[%emt 0:09:58]} 13. Nc3 {[%emt 0:09:00]} cxd4 {[%emt 0:01:53]} 14. Nb5 {[%emt 0:00:42]} Bxb5 {[%emt 0:04:56]} 15. cxb5 {[%emt 0:00:23]} Ne5 {[%emt 0:01:11]} 16. Bc2 {[%emt 0:08:33]} Rc8 {[%emt 0:04:28]} 17. Bb3 {[%emt 0:02:27]} Qc7 {[%emt 0:05:35]} 18. Bg5 {[%emt 0:09:05]} Nfd7 {[%emt 0:08:06]} 19. Qxd4 {[%emt 0:05:15]} Qc5 {[%emt 0:03:10]} 20. Rfd1 {[%emt 0:00:16]} Nxf3+ {[%emt 0:03:47]} 21. gxf3 {[%emt 0:00:39]} Qxg5+ {[%emt 0:00:13]} 22. Kh1 {[%emt 0:01:10]} Qf6 {[%emt 0:02:18]} 23. Qxf6 {[%emt 0:01:45]} Nxf6 {[%emt 0:00:12]} 24. Rxd6 {[%emt 0:01:59]} Rfd8 {[%emt 0:03:07]} 25. Rbd1 {[%emt 0:01:16]} Rxd6 {[%emt 0:00:43]} 26. Rxd6 {[%emt 0:00:07]} Kf8 {[%emt 0:01:52]} 27. e5 {[%emt 0:00:55]} Ne8 {[%emt 0:01:18]} 28. Rd7 {[%emt 0:02:56]} Rc7 {[%emt 0:00:18]} 29. Rd3 {[%emt 0:00:21]} Ke7 {[%emt 0:03:03]} 30. a4 {[%emt 0:05:39]} Rc5 {[%emt 0:01:44]} 31. f4 {[%emt 0:00:44]} Nc7 {[%emt 0:02:31]} 32. Kg2 {[%emt 0:01:22]} Ne6 {[%emt 0:08:11]} 33. Kf3 {[%emt 0:03:35]} Rc1 {[%emt 0:01:57]} 34. Bxe6 {[%emt 0:00:35]} Kxe6 {[%emt 0:01:39]} 35. Rd6+ {[%emt 0:01:36]} Ke7 {[%emt 0:00:59]} 36. Rd4 {[%emt 0:06:03]} Rc2 {[%emt 0:02:32]} 37. h4 {[%emt 0:00:26]} Rc1 {[%emt 0:01:22]} 38. f5 {[%emt 0:01:23]} Rh1 {[%emt 0:02:37]} 39. Rc4 {[%emt 0:00:52]} Kd7 {[%emt 0:00:31]} 40. Rd4+ {[%emt 0:00:15]} Ke7 {[%emt 0:00:35]} 41. Kg4 {[%emt 0:17:20]} Re1 {[%emt 0:05:49]} 42. Kf4 {[%emt 0:00:12]} Rh1 {[%emt 0:00:28]} 43. Kg5 {[%emt 0:05:05]} Re1 {[%emt 0:04:50]} 44. Rc4 {[%emt 0:05:47]} Kd7 {[%emt 0:03:32]} 45. Rd4+ {[%emt 0:00:13]} Ke7 {[%emt 0:00:13]} 46. Rc4 {[%emt 0:01:32]} Kd7 {[%emt 0:00:25]} 47. Rg4 {[%emt 0:00:33]} Rf1 {[%emt 0:06:27]} 48. f6 {[%emt 0:02:14]} h6+ {[%emt 0:19:43]} 49. Kh5 {[%emt 0:00:01]} gxf6 {[%emt 0:00:48]} 50. Rd4+ {[%emt 0:01:59]} Ke7 {[%emt 0:01:29]} 51. exf6+ {[%emt 0:00:29]} Rxf6 {[%emt 0:00:11]} 52. Rc4 {[%emt 0:00:21]} Kd7 {[%emt 0:00:52]} 53. Rc6 {[%emt 0:01:10]} Rf4 {[%emt 0:01:29]} 54. a5 {[%emt 0:00:39]} bxa5 {[%emt 0:00:31]} 55. Ra6 {[%emt 0:00:01]} Rf5+ {[%emt 0:00:24]} 56. Kxh6 {[%emt 0:00:10]} Rxb5 {[%emt 0:00:02]} 57. Rxa7+ {[%emt 0:00:26]} Ke6 {[%emt 0:00:02]} 58. h5 {[%emt 0:00:44]} f5 {[%emt 0:01:08]} 59. Kg5 {[%emt 0:01:08]} f4+ {[%emt 0:00:11]} 60. Kxf4 {[%emt 0:00:11]} Rxh5 {[%emt 0:00:05]} 61. Ra6+ {[%emt 0:00:24]} Kf7 {[%emt 0:00:22]} 62. Ke4 {[%emt 0:00:16]} 1/2-1/2

[Event "FIDE CB Open 2022"]
[Site "Ceske Budejovice"]
[Date "2022.07.01"]
[Round "1.34"]
[White "Petirova, Iva"]
[Black "Prazak, Daniel"]
[Result "0-1"]
[ECO "C00"]
[WhiteElo "1722"]
[BlackElo "2113"]
[Annotator "RC"]
[PlyCount "96"]
[EventDate "2022.07.01"]
[EventType "swiss"]
[EventCountry "CZE"]
[SourceTitle "playchess.com"]
[Source "ChessBase"]
[SourceQuality "1"]
[TimeControl "40/5400+30:1800+30"]

1. e4 {[%emt 0:00:09]} e6 {[%emt 0:00:20]} 2. Qe2 {[%emt 0:00:34]} Be7 {[%emt 0:00:18]} 3. g3 {[%emt 0:00:45]} d5 {[%emt 0:00:42]} 4. d3 {[%emt 0:00:58]} Nf6 {[%emt 0:00:22]} 5. Bg2 {[%emt 0:03:12]} c5 {[%emt 0:02:37]} 6. e5 {[%emt 0:05:18]} Nfd7 {[%emt 0:00:45]} 7. f4 {[%emt 0:02:02]} Nc6 {[%emt 0:02:06]} 8. Nf3 {[%emt 0:01:47]} Qc7 {[%emt 0:01:48]} 9. Nc3 {[%emt 0:04:28]} a6 {[%emt 0:11:14]} 10. a4 {[%emt 0:05:34]} b6 {[%emt 0:02:04]} 11. O-O {[%emt 0:07:05]} Bb7 {[%emt 0:01:38]} 12. Bd2 {[%emt 0:03:47]} Nd4 {[%emt 0:12:00]} 13. Qd1 {[%emt 0:04:01]} Nxf3+ {[%emt 0:03:06]} 14. Qxf3 {[%emt 0:03:43]} O-O-O {[%emt 0:03:26]} 15. Na2 {[%emt 0:06:16]} f5 {[%emt 0:16:09]} 16. b4 {[%emt 0:10:29]} cxb4 {[%emt 0:02:40]} 17. Nxb4 {[%emt 0:02:32]} a5 {[%emt 0:02:14]} 18. Na2 {[%emt 0:00:34]} Nc5 {[%emt 0:01:16]} 19. d4 {[%emt 0:10:17]} Ne4 {[%emt 0:07:42]} 20. Rfd1 {[%emt 0:05:04]} Kb8 {[%emt 0:02:03]} 21. Qb3 {[%emt 0:04:26]} Nxd2 {[%emt 0:08:45]} 22. Rxd2 {[%emt 0:00:28]} Ba6 {[%emt 0:01:30]} 23. Rb1 {[%emt 0:03:18]} Kb7 {[%emt 0:01:22]} 24. Bf1 {[%emt 0:03:49]} Bxf1 {[%emt 0:02:35]} 25. Kxf1 {[%emt 0:01:50]} Rc8 {[%emt 0:01:43]} 26. Kf2 {[%emt 0:02:07]} Qc6 {[%emt 0:01:20]} 27. Rb2 {[%emt 0:03:21]} Bd8 {[%emt 0:04:08]} 28. Ke3 {[%emt 0:01:18]} Qc4 {[%emt 0:00:55]} 29. Rd3 {[%emt 0:01:29]} g5 {[%emt 0:00:34]} 30. Nc3 {[%emt 0:01:39]} Qxb3 {[%emt 0:01:00]} 31. cxb3 {[%emt 0:00:07]} Be7 {[%emt 0:00:34]} 32. Nb5 {[%emt 0:01:00]} Rc1 {[%emt 0:01:01]} 33. Rc3 {[%emt 0:01:10]} Rc8 {[%emt 0:00:27]} 34. Rxc8 {[%emt 0:01:23]} gxf4+ {[%emt 0:01:08]} 35. gxf4 {[%emt 0:00:10]} Kxc8 {[%emt 0:00:09]} 36. Kd2 {[%emt 0:00:20]} Rh1 {[%emt 0:01:11]} 37. Ke3 {[%emt 0:00:33]} Re1+ {[%emt 0:00:05]} 38. Kf3 {[%emt 0:01:13]} Kd8 {[%emt 0:00:43]} 39. Rc2 {[%emt 0:00:46]} Rb1 {[%emt 0:00:30]} 40. Rc3 {[%emt 0:00:41]} Rb2 {[%emt 0:01:03]} 41. Kg3 {[%emt 0:30:42]} h5 {[%emt 0:30:25]} 42. Na7 {[%emt 0:00:00]} Kd7 {[%emt 0:00:00]} 43. Nc6 {[%emt 0:00:00]} Bb4 {[%emt 0:00:00]} 44. Nxb4 {[%emt 0:00:00]} axb4 {[%emt 0:00:00]} 45. Rd3 {[%emt 0:00:00]} Kc6 {[%emt 0:00:00]} 46. h3 {[%emt 0:00:00]} Rc2 {[%emt 0:00:00]} 47. Kf3 {[%emt 0:00:00]} h4 {[%emt 0:00:00]} 48. Ke3 {[%emt 0:00:00]} Rh2 {[%emt 0:00:00]} 0-1

[Event "FIDE CB Open 2022"]
[Site "Ceske Budejovice"]
[Date "2022.07.01"]
[Round "1.35"]
[White "Vltavsky, Vladimir"]
[Black "Schmied, Eva-Maria"]
[Result "1-0"]
[ECO "B22"]
[WhiteElo "2106"]
[BlackElo "1718"]
[Annotator "NA RC"]
[PlyCount "70"]
[EventDate "2022.07.01"]
[EventType "swiss"]
[EventCountry "CZE"]
[SourceTitle "playchess.com"]
[Source "ChessBase"]
[SourceQuality "1"]
[TimeControl "40/5400+30:1800+30"]

1. e4 {[%emt 0:00:09]} c5 {[%emt 0:00:04]} 2. Nf3 {[%emt 0:00:05]} e6 {[%emt 0:00:03]} 3. c3 {[%emt 0:00:04]} Nf6 {[%emt 0:00:05]} 4. e5 {[%emt 0:00:04]} Nd5 {[%emt 0:00:04]} 5. d4 {[%emt 0:00:03]} cxd4 {[%emt 0:00:06]} 6. cxd4 {[%emt 0:00:06]} d6 {[%emt 0:00:08]} 7. Bd2 {[%emt 0:00:53]} Qb6 {[%emt 0:06:33]} 8. Nc3 {[%emt 0:06:33]} Nc6 {[%emt 0:03:44]} 9. Nxd5 {[%emt 0:02:25]} exd5 {[%emt 0:00:09]} 10. Bc3 {[%emt 0:00:05]} Be7 {[%emt 0:02:27]} 11. Be2 {[%emt 0:01:54]} O-O {[%emt 0:01:51]} 12. O-O {[%emt 0:00:09]} Bg4 {[%emt 0:00:51]} 13. Re1 {[%emt 0:04:56]} Rad8 {[%emt 0:05:39]} 14. h3 {[%emt 0:05:41]} Bxf3 {[%emt 0:12:50]} 15. Bxf3 {[%emt 0:01:02]} dxe5 {[%emt 0:00:11]} 16. dxe5 {[%emt 0:00:06]} d4 {[%emt 0:00:09]} 17. Bd2 {[%emt 0:00:05]} Rfe8 {[%emt 0:10:43]} 18. Qb3 {[%emt 0:05:07]} Bc5 {[%emt 0:19:11]} 19. Qxb6 {[%emt 0:07:15]} Bxb6 {[%emt 0:01:48]} 20. Bxc6 {[%emt 0:09:45]} bxc6 {[%emt 0:01:23]} 21. Rac1 {[%emt 0:01:08]} Re6 {[%emt 0:06:24]} 22. f4 {[%emt 0:09:16]} Rd5 {[%emt 0:00:26]} 23. Kf2 {[%emt 0:01:50]} h5 {[%emt 0:06:58]} 24. Kf3 {[%emt 0:01:06]} Kf8 {[%emt 0:03:04]} 25. Re4 {[%emt 0:07:47]} Ke7 {[%emt 0:06:02]} 26. Rce1 {[%emt 0:00:59]} g6 {[%emt 0:01:49]} 27. g4 {[%emt 0:00:07]} hxg4+ {[%emt 0:00:05]} 28. hxg4 {[%emt 0:00:02]} Kd7 {[%emt 0:00:30]} 29. f5 {[%emt 0:02:21]} gxf5 {[%emt 0:00:08]} 30. gxf5 {[%emt 0:00:04]} Re8 {[%emt 0:00:33]} 31. e6+ {[%emt 0:04:18]} fxe6 {[%emt 0:00:06]} 32. fxe6+ {[%emt 0:00:03]} Kd6 {[%emt 0:01:48]} 33. Bf4+ {[%emt 0:00:16]} Kc5 {[%emt 0:00:36]} 34. e7 {[%emt 0:01:35]} d3 {[%emt 0:01:23]} 35. a4 {[%emt 0:06:13]} d2 {[%emt 0:01:31]} 1-0

[Event "FIDE CB Open 2022"]
[Site "Ceske Budejovice"]
[Date "2022.07.01"]
[Round "1.36"]
[White "Nagyova, Daniela"]
[Black "Pirola, Claudionor Alcides L"]
[Result "0-1"]
[ECO "C55"]
[WhiteElo "1712"]
[BlackElo "2100"]
[Annotator "RC"]
[PlyCount "73"]
[EventDate "2022.07.01"]
[EventType "swiss"]
[EventCountry "CZE"]
[SourceTitle "playchess.com"]
[Source "ChessBase"]
[SourceQuality "1"]
[TimeControl "40/5400+30:1800+30"]

1. e4 {[%emt 0:00:09]} e5 {[%emt 0:00:36]} 2. Nf3 {[%emt 0:00:13]} Nc6 {[%emt 0:00:03]} 3. Bc4 {[%emt 0:00:12]} Nf6 {[%emt 0:00:08]} 4. d3 {[%emt 0:00:36]} h6 {[%emt 0:00:10]} 5. O-O {[%emt 0:01:31]} d6 {[%emt 0:00:06]} 6. Nbd2 {[%emt 0:01:41]} g5 {[%emt 0:00:48]} 7. Nb3 {[%emt 0:03:34]} Bg7 {[%emt 0:03:46]} 8. c3 {[%emt 0:03:16]} a6 {[%emt 0:01:31]} 9. Re1 {[%emt 0:05:51]} g4 {[%emt 0:04:36]} 10. Nfd2 {[%emt 0:00:48]} b5 {[%emt 0:02:36]} 11. Bd5 {[%emt 0:01:01]} Nxd5 {[%emt 0:00:12]} 12. exd5 {[%emt 0:00:06]} Ne7 {[%emt 0:00:10]} 13. c4 {[%emt 0:01:56]} O-O {[%emt 0:01:18]} 14. Nf1 {[%emt 0:04:51]} c6 {[%emt 0:04:12]} 15. dxc6 {[%emt 0:02:28]} Nxc6 {[%emt 0:00:29]} 16. Ng3 {[%emt 0:03:17]} d5 {[%emt 0:06:43]} 17. cxb5 {[%emt 0:03:54]} axb5 {[%emt 0:02:16]} 18. Nh5 {[%emt 0:01:37]} Bh8 {[%emt 0:06:07]} 19. Bxh6 {[%emt 0:05:43]} Re8 {[%emt 0:00:24]} 20. Ng3 {[%emt 0:04:24]} f5 {[%emt 0:04:41]} 21. Rc1 {[%emt 0:10:31]} Qd6 {[%emt 0:07:20]} 22. Qd2 {[%emt 0:06:55]} Ne7 {[%emt 0:05:34]} 23. Qg5+ {[%emt 0:10:59]} Kh7 {[%emt 0:06:10]} 24. Qh5 {[%emt 0:01:55]} Qg6 {[%emt 0:00:29]} 25. Bd2+ {[%emt 0:02:28]} Qxh5 {[%emt 0:00:35]} 26. Nxh5 {[%emt 0:00:02]} Kg6 {[%emt 0:02:22]} 27. Ng3 {[%emt 0:01:06]} Rxa2 {[%emt 0:00:53]} 28. Rc2 {[%emt 0:01:18]} f4 {[%emt 0:01:06]} 29. Ne2 {[%emt 0:01:59]} Bf5 {[%emt 0:01:01]} 30. Nec1 {[%emt 0:00:57]} Raa8 {[%emt 0:00:47]} 31. Rc7 {[%emt 0:02:14]} Rac8 {[%emt 0:06:36]} 32. Rb7 {[%emt 0:03:26]} Rb8 {[%emt 0:07:51]} 33. Rc7 {[%emt 0:02:05]} f3 {[%emt 0:05:45]} 34. g3 {[%emt 0:05:05]} Bf6 {[%emt 0:00:26]} 35. Bb4 {[%emt 0:03:31]} Kf7 {[%emt 0:05:26]} 36. Nc5 {[%emt 0:03:14]} Rb6 {[%emt 0:02:50]} 37. Rxe5 {[%emt 0:00:00]} 0-1

[Event "FIDE CB Open 2022"]
[Site "Ceske Budejovice"]
[Date "2022.07.01"]
[Round "1.37"]
[White "Sykora, Ondrej"]
[Black "Vojtek, Pavel"]
[Result "1/2-1/2"]
[ECO "C10"]
[WhiteElo "2099"]
[BlackElo "1711"]
[Annotator "RC"]
[PlyCount "57"]
[EventDate "2022.07.01"]
[EventType "swiss"]
[EventCountry "CZE"]
[SourceTitle "playchess.com"]
[Source "ChessBase"]
[SourceQuality "1"]
[TimeControl "40/5400+30:1800+30"]

1. e4 {[%emt 0:00:06]} e6 {[%emt 0:00:03]} 2. d4 {[%emt 0:00:07]} d5 {[%emt 0:00:03]} 3. Nc3 {[%emt 0:00:06]} dxe4 {[%emt 0:00:08]} 4. Nxe4 {[%emt 0:00:22]} Be7 {[%emt 0:00:05]} 5. Nf3 {[%emt 0:00:20]} Nf6 {[%emt 0:00:20]} 6. Bd3 {[%emt 0:02:13]} Nbd7 {[%emt 0:01:14]} 7. c3 {[%emt 0:00:32]} b6 {[%emt 0:01:32]} 8. O-O {[%emt 0:00:14]} Bb7 {[%emt 0:01:24]} 9. Ng3 {[%emt 0:01:12]} O-O {[%emt 0:01:30]} 10. Be3 {[%emt 0:01:12]} Nd5 {[%emt 0:06:06]} 11. Qe2 {[%emt 0:00:13]} Nxe3 {[%emt 0:03:36]} 12. fxe3 {[%emt 0:00:03]} Nf6 {[%emt 0:04:42]} 13. e4 {[%emt 0:02:14]} c5 {[%emt 0:02:05]} 14. Rad1 {[%emt 0:00:32]} cxd4 {[%emt 0:04:25]} 15. cxd4 {[%emt 0:00:05]} Rc8 {[%emt 0:03:20]} 16. Bb1 {[%emt 0:03:40]} Rc7 {[%emt 0:06:48]} 17. a3 {[%emt 0:01:58]} Qc8 {[%emt 0:02:44]} 18. Rfe1 {[%emt 0:07:27]} Rd8 {[%emt 0:11:46]} 19. Nh1 {[%emt 0:07:01]} Ba6 {[%emt 0:12:45]} 20. Qe3 {[%emt 0:07:57]} Ng4 {[%emt 0:07:04]} 21. Qf4 {[%emt 0:01:36]} e5 {[%emt 0:05:00]} 22. Nxe5 {[%emt 0:03:04]} Nxe5 {[%emt 0:00:02]} 23. dxe5 {[%emt 0:01:24]} Rxd1 {[%emt 0:00:22]} 24. Rxd1 {[%emt 0:00:12]} h6 {[%emt 0:01:25]} 25. h4 {[%emt 0:07:21]} Rd7 {[%emt 0:04:36]} 26. Rxd7 {[%emt 0:52:19]} Qxd7 {[%emt 0:20:25]} 27. Nf2 {[%emt 0:00:30]} Bc4 {[%emt 0:00:30]} 28. b4 {[%emt 0:00:30]} Kf8 {[%emt 0:00:30]} 29. g3 {[%emt 0:00:30]} 1/2-1/2

[Event "FIDE CB Open 2022"]
[Site "Ceske Budejovice"]
[Date "2022.07.01"]
[Round "1.38"]
[White "Rybackova, Lucie"]
[Black "Hladky, Tadeas"]
[Result "0-1"]
[ECO "D11"]
[WhiteElo "1696"]
[BlackElo "2095"]
[Annotator "NA RC"]
[PlyCount "74"]
[EventDate "2022.07.01"]
[EventType "swiss"]
[EventCountry "CZE"]
[SourceTitle "playchess.com"]
[Source "ChessBase"]
[SourceQuality "1"]
[TimeControl "40/5400+30:1800+30"]

1. Nf3 {[%emt 0:00:16]} Nf6 {[%emt 0:00:14]} 2. g3 {[%emt 0:00:37]} d5 {[%emt 0:00:11]} 3. Bg2 {[%emt 0:00:49]} Bf5 {[%emt 0:00:36]} 4. d4 {[%emt 0:01:40]} e6 {[%emt 0:00:25]} 5. O-O {[%emt 0:01:39]} Be7 {[%emt 0:00:54]} 6. c4 {[%emt 0:01:47]} c6 {[%emt 0:03:33]} 7. Nc3 {[%emt 0:00:54]} O-O {[%emt 0:00:24]} 8. b3 {[%emt 0:05:52]} h6 {[%emt 0:02:45]} 9. Bb2 {[%emt 0:03:06]} Nbd7 {[%emt 0:04:29]} 10. Nd2 {[%emt 0:05:42]} Qb6 {[%emt 0:13:45]} 11. e4 {[%emt 0:08:48]} dxe4 {[%emt 0:00:11]} 12. Ndxe4 {[%emt 0:01:07]} Nxe4 {[%emt 0:00:48]} 13. Nxe4 {[%emt 0:00:34]} Nf6 {[%emt 0:00:54]} 14. Qe2 {[%emt 0:03:38]} Bxe4 {[%emt 0:11:57]} 15. Bxe4 {[%emt 0:00:36]} Nxe4 {[%emt 0:00:12]} 16. Qxe4 {[%emt 0:00:20]} Bf6 {[%emt 0:00:46]} 17. Rfd1 {[%emt 0:05:14]} Rfd8 {[%emt 0:01:13]} 18. Rd3 {[%emt 0:07:53]} Rd7 {[%emt 0:03:28]} 19. Rad1 {[%emt 0:02:54]} Rad8 {[%emt 0:01:11]} 20. Kg2 {[%emt 0:01:23]} Qa5 {[%emt 0:10:36]} 21. Qe2 {[%emt 0:06:16]} c5 {[%emt 0:06:13]} 22. Bc3 {[%emt 0:02:55]} Qb6 {[%emt 0:05:47]} 23. dxc5 {[%emt 0:06:01]} Qc6+ {[%emt 0:00:15]} 24. f3 {[%emt 0:08:34]} Bxc3 {[%emt 0:00:20]} 25. Rxd7 {[%emt 0:01:17]} Rxd7 {[%emt 0:01:32]} 26. Rd3 {[%emt 0:01:19]} Bb4 {[%emt 0:01:22]} 27. Rxd7 {[%emt 0:01:02]} Qxd7 {[%emt 0:00:07]} 28. Qe3 {[%emt 0:01:18]} Qd2+ {[%emt 0:00:31]} 29. Qxd2 {[%emt 0:00:43]} Bxd2 {[%emt 0:00:06]} 30. a3 {[%emt 0:01:11]} Bc1 {[%emt 0:00:05]} 31. a4 {[%emt 0:00:28]} Ba3 {[%emt 0:00:07]} 32. Kf2 {[%emt 0:00:18]} Bxc5+ {[%emt 0:00:02]} 33. Ke2 {[%emt 0:00:22]} a5 {[%emt 0:00:06]} 34. Kd3 {[%emt 0:00:14]} f5 {[%emt 0:00:32]} 35. g4 {[%emt 0:00:52]} Kf7 {[%emt 0:00:16]} 36. h3 {[%emt 0:00:32]} Kf6 {[%emt 0:00:06]} 37. f4 {[%emt 0:01:39]} e5 {[%emt 0:00:21]} 0-1

[Event "FIDE CB Open 2022"]
[Site "Ceske Budejovice"]
[Date "2022.07.01"]
[Round "1.39"]
[White "Hrbolka, Ladislav"]
[Black "Hrbek, Jachym"]
[Result "1/2-1/2"]
[ECO "D30"]
[WhiteElo "2164"]
[BlackElo "1695"]
[Annotator "RC"]
[PlyCount "84"]
[EventDate "2022.07.01"]
[EventType "swiss"]
[EventCountry "CZE"]
[SourceTitle "playchess.com"]
[Source "ChessBase"]
[SourceQuality "1"]
[TimeControl "40/5400+30:1800+30"]

1. d4 {[%emt 0:00:08]} d5 {[%emt 0:00:09]} 2. Nf3 {[%emt 0:00:05]} c6 {[%emt 0:00:09]} 3. c4 {[%emt 0:00:24]} Nf6 {[%emt 0:00:16]} 4. e3 {[%emt 0:00:15]} e6 {[%emt 0:00:44]} 5. Be2 {[%emt 0:00:54]} dxc4 {[%emt 0:02:27]} 6. Bxc4 {[%emt 0:00:05]} b5 {[%emt 0:00:19]} 7. Bd3 {[%emt 0:00:12]} Bb7 {[%emt 0:02:18]} 8. O-O {[%emt 0:00:05]} Be7 {[%emt 0:02:38]} 9. Qe2 {[%emt 0:01:59]} O-O {[%emt 0:05:32]} 10. e4 {[%emt 0:04:30]} Nbd7 {[%emt 0:07:23]} 11. e5 {[%emt 0:04:26]} Nd5 {[%emt 0:13:28]} 12. Nc3 {[%emt 0:09:38]} Nxc3 {[%emt 0:09:45]} 13. bxc3 {[%emt 0:00:43]} Re8 {[%emt 0:02:05]} 14. Qe4 {[%emt 0:07:43]} Nf8 {[%emt 0:04:21]} 15. Bxb5 {[%emt 0:02:44]} Qc7 {[%emt 0:05:43]} 16. Ba4 {[%emt 0:05:33]} Red8 {[%emt 0:05:33]} 17. Rb1 {[%emt 0:06:09]} Rac8 {[%emt 0:02:15]} 18. Bg5 {[%emt 0:10:15]} Ba8 {[%emt 0:03:20]} 19. Bxe7 {[%emt 0:05:30]} Qxe7 {[%emt 0:00:18]} 20. Qe3 {[%emt 0:01:32]} h6 {[%emt 0:05:00]} 21. Bc2 {[%emt 0:03:00]} c5 {[%emt 0:04:14]} 22. Be4 {[%emt 0:00:59]} Bxe4 {[%emt 0:04:27]} 23. Qxe4 {[%emt 0:00:03]} Rd5 {[%emt 0:04:27]} 24. g3 {[%emt 0:08:36]} Rd7 {[%emt 0:04:54]} 25. Rb3 {[%emt 0:02:17]} Rdc7 {[%emt 0:01:37]} 26. Rfb1 {[%emt 0:02:24]} Nd7 {[%emt 0:01:05]} 27. Rb7 {[%emt 0:05:42]} Nb6 {[%emt 0:01:07]} 28. Rxc7 {[%emt 0:00:03]} Qxc7 {[%emt 0:00:14]} 29. Rb5 {[%emt 0:03:15]} cxd4 {[%emt 0:01:55]} 30. cxd4 {[%emt 0:00:12]} Nd5 {[%emt 0:02:35]} 31. Rc5 {[%emt 0:01:09]} Qb7 {[%emt 0:00:32]} 32. Rxc8+ {[%emt 0:05:56]} Qxc8 {[%emt 0:00:06]} 33. Qb1 {[%emt 0:00:51]} Qc7 {[%emt 0:03:33]} 34. Qb2 {[%emt 0:02:10]} a6 {[%emt 0:02:06]} 35. Ne1 {[%emt 0:02:41]} Qc4 {[%emt 0:00:37]} 36. Nf3 {[%emt 0:00:53]} Qc7 {[%emt 0:00:42]} 37. Qb3 {[%emt 0:01:13]} Qc6 {[%emt 0:00:33]} 38. Qb2 {[%emt 0:03:38]} Qc7 {[%emt 0:00:26]} 39. Qe2 {[%emt 0:00:53]} Qc6 {[%emt 0:00:28]} 40. Ne1 {[%emt 0:00:56]} Qb6 {[%emt 0:00:30]} 41. Qd2 {[%emt 0:03:32]} Qb1 {[%emt 0:03:38]} 42. Kg2 {[%emt 0:01:22]} Qb7 {[%emt 0:00:38]} 1/2-1/2

[Event "FIDE CB Open 2022"]
[Site "Ceske Budejovice"]
[Date "2022.07.01"]
[Round "1.40"]
[White "Svoboda, Petr"]
[Black "Zilavy, Jan"]
[Result "1/2-1/2"]
[ECO "C47"]
[WhiteElo "2088"]
[BlackElo "2090"]
[Annotator "NA RC"]
[PlyCount "69"]
[EventDate "2022.07.01"]
[EventType "swiss"]
[EventCountry "CZE"]
[SourceTitle "playchess.com"]
[Source "ChessBase"]
[SourceQuality "1"]
[TimeControl "40/5400+30:1800+30"]

1. e4 {[%emt 0:00:06]} e5 {[%emt 0:00:11]} 2. Nf3 {[%emt 0:00:06]} Nc6 {[%emt 0:00:08]} 3. d4 {[%emt 0:00:06]} exd4 {[%emt 0:00:08]} 4. Nxd4 {[%emt 0:00:05]} Nf6 {[%emt 0:01:18]} 5. Nc3 {[%emt 0:00:08]} Bb4 {[%emt 0:01:49]} 6. Nxc6 {[%emt 0:00:12]} bxc6 {[%emt 0:00:23]} 7. Bd3 {[%emt 0:00:14]} O-O {[%emt 0:01:28]} 8. O-O {[%emt 0:00:24]} Re8 {[%emt 0:01:50]} 9. Bg5 {[%emt 0:01:11]} h6 {[%emt 0:01:44]} 10. Bh4 {[%emt 0:00:10]} g5 {[%emt 0:04:35]} 11. Bg3 {[%emt 0:01:01]} Bxc3 {[%emt 0:01:46]} 12. bxc3 {[%emt 0:00:07]} Nxe4 {[%emt 0:01:18]} 13. Qh5 {[%emt 0:04:48]} Kg7 {[%emt 0:06:49]} 14. Rae1 {[%emt 0:12:41]} d5 {[%emt 0:04:19]} 15. h4 {[%emt 0:08:22]} Bf5 {[%emt 0:06:02]} 16. hxg5 {[%emt 0:05:57]} hxg5 {[%emt 0:00:37]} 17. Qf3 {[%emt 0:05:15]} Bg6 {[%emt 0:17:02]} 18. Qe3 {[%emt 0:16:19]} f6 {[%emt 0:03:23]} 19. f4 {[%emt 0:10:18]} Nxg3 {[%emt 0:16:39]} 20. Qxg3 {[%emt 0:01:05]} Bxd3 {[%emt 0:02:08]} 21. Rxe8 {[%emt 0:00:34]} Qxe8 {[%emt 0:00:17]} 22. cxd3 {[%emt 0:00:18]} Qf7 {[%emt 0:07:14]} 23. fxg5 {[%emt 0:01:55]} f5 {[%emt 0:00:36]} 24. Qe5+ {[%emt 0:02:29]} Kg6 {[%emt 0:00:52]} 25. g4 {[%emt 0:00:42]} Re8 {[%emt 0:00:45]} 26. gxf5+ {[%emt 0:02:10]} Kxg5 {[%emt 0:00:23]} 27. Qf4+ {[%emt 0:00:56]} Kf6 {[%emt 0:00:48]} 28. Qh6+ {[%emt 0:01:56]} Ke7 {[%emt 0:01:10]} 29. Re1+ {[%emt 0:03:02]} Kd7 {[%emt 0:00:09]} 30. Rxe8 {[%emt 0:01:12]} Qxe8 {[%emt 0:00:10]} 31. Qg7+ {[%emt 0:01:12]} Kd6 {[%emt 0:00:25]} 32. Qf6+ {[%emt 0:02:24]} Kd7 {[%emt 0:00:08]} 33. Qg7+ {[%emt 0:00:16]} Kd6 {[%emt 0:00:18]} 34. Qf6+ {[%emt 0:00:19]} Kd7 {[%emt 0:00:12]} 35. Qg7+ {[%emt 0:00:15]} 1/2-1/2